Workbook

Sheet Лист1
C1: К-во дней | F1: Вероятность | G1: Кумулятивная | H1: f | I1: Множ. При росте | J1: Множ. При падении | K1: Выигрыш | L1: Кумул. Выигр. | M1: f | N1: Множ. При росте | O1: Множ. При падении | P1: Выигрыш | Q1: Кумул. Выигр.
C2: роста | D2: падений | F2: исхода | G2: вероятность | H2: 1 | I2: =1+H2*$B$4 -> 2 | J2: =1-H2*$B$5 -> 0.4 | M2: 0.3333 | N2: =1+M2*$B$4 -> 1.3333 | O2: =1-M2*$B$5 -> 0.80002
C3: 100 | D3: =100-C3 -> 0 | F3: =BINOMDIST(C3,100,0.5,FALSE) -> 7.888609052e-31 | G3: =F3*2+G4 -> 1 | I3: =POWER($I$2,C3) -> 1.2676506e+30 | J3: =POWER($J$2,D3) -> 1 | K3: =I3*J3 -> 1.2676506e+30 | L3: =K3+L4 -> 1.58456325e+30 | N3: =POWER($N$2,C3) -> 3.110197093e+12 | O3: =POWER($O$2,D3) -> 1 | P3: =N3*O3 -> 3.110197093e+12 | Q3: =P3+Q4 -> 7.776075952e+12
A4: Рост | B4: 1 | C4: 99 | D4: =100-C4 -> 1 | F4: 7.888609052e-29 | G4: 1 | I4: =POWER($I$2,C4) -> 6.338253001e+29 | J4: =POWER($J$2,D4) -> 0.4 | K4: =I4*J4 -> 2.5353012e+29 | L4: 3.169126501e+29 | N4: =POWER($N$2,C4) -> 2.332706137e+12 | O4: =POWER($O$2,D4) -> 0.80002 | P4: =N4*O4 -> 1.866211564e+12 | Q4: =P4+Q5 -> 4.665878859e+12
A5: Падение | B5: 0.6 | C5: 98 | D5: 2 | F5: 3.904861481e-27 | G5: 1 | I5: 3.169126501e+29 | J5: 0.16 | K5: 5.070602401e+28 | L5: 6.338253001e+28 | N5: 1.749573342e+12 | O5: 0.6400320004 | P5: 1.119782926e+12 | Q5: 2.799667295e+12
C6: 97 | D6: 3 | F6: 1.275588084e-25 | G6: 1 | I6: 1.58456325e+29 | J6: 0.064 | K6: 1.01412048e+28 | L6: 1.2676506e+28 | N6: 1.312212812e+12 | O6: 0.512038401 | P6: 6.719033499e+11 | Q6: 1.679884369e+12
C7: 96 | D7: 4 | F7: 3.093301103e-24 | G7: 1 | I7: 7.922816251e+28 | J7: 0.0256 | K7: 2.02824096e+27 | L7: 2.5353012e+27 | N7: 9.841842136e+11 | O7: 0.4096409615 | P7: 4.031621676e+11 | Q7: 1.007981019e+12
C8: 95 | D8: 5 | F8: 5.939138118e-23 | G8: 1 | I8: 3.961408126e+28 | J8: 0.01024 | K8: 4.056481921e+26 | L8: 5.070602401e+26 | N8: 7.381566141e+11 | O8: 0.327720962 | P8: 2.419093957e+11 | Q8: 6.048188518e+11
C9: 94 | D9: 6 | F9: 9.403635353e-22 | G9: 1 | I9: 1.980704063e+28 | J9: 0.004096 | K9: 8.112963841e+25 | L9: 1.01412048e+26 | N9: 5.536313013e+11 | O9: 0.2621833241 | P9: 1.451528949e+11 | Q9: 3.629094561e+11
C10: 93 | D10: 7 | F10: 1.26277389e-20 | G10: 1 | I10: 9.903520314e+27 | J10: 0.0016384 | K10: 1.622592768e+25 | L10: 2.02824096e+25 | N10: 4.152338569e+11 | O10: 0.2097519029 | P10: 8.709609163e+10 | Q10: 2.177565612e+11
C11: 92 | D11: 8 | F11: 1.467974647e-19 | G11: 1 | I11: 4.951760157e+27 | J11: 0.00065536 | K11: 3.245185537e+24 | L11: 4.056481921e+24 | N11: 3.114331785e+11 | O11: 0.1678057174 | P11: 5.226026793e+10 | Q11: 1.306604696e+11
C12: 91 | D12: 9 | F12: 1.500596306e-18 | G12: 1 | I12: 2.475880079e+27 | J12: 0.000262144 | K12: 6.490371073e+23 | L12: 8.112963841e+23 | N12: 2.335807234e+11 | O12: 0.13424793 | P12: 3.13577286e+10 | Q12: 7.840020163e+10
C13: 90 | D13: 10 | F13: 1.365542639e-17 | G13: 1 | I13: 1.237940039e+27 | J13: 0.0001048576 | K13: 1.298074215e+23 | L13: 1.622592768e+23 | N13: 1.751899223e+11 | O13: 0.107401029 | P13: 1.881557792e+10 | Q13: 4.704247303e+10
C14: 89 | D14: 11 | F14: 1.117262159e-16 | G14: 1 | I14: 6.189700196e+26 | J14: 4.194304e-05 | K14: 2.596148429e+22 | L14: 3.245185537e+22 | N14: 1.313957266e+11 | O14: 0.08592297119 | P14: 1.128991123e+10 | Q14: 2.822689511e+10
C15: 88 | D15: 12 | F15: 8.286361012e-16 | G15: 1 | I15: 3.094850098e+26 | J15: 1.6777216e-05 | K15: 5.192296859e+21 | L15: 6.490371073e+21 | N15: 9.854925868e+10 | O15: 0.06874009541 | P15: 6774285445 | Q15: 1.693698388e+10
C16: 87 | D16: 13 | F16: 5.609228993e-15 | G16: 1 | I16: 1.547425049e+26 | J16: 6.7108864e-06 | K16: 1.038459372e+21 | L16: 1.298074215e+21 | N16: 7.391379186e+10 | O16: 0.05499345113 | P16: 4064774500 | Q16: 1.016269843e+10
C17: 86 | D17: 14 | F17: 3.48573516e-14 | G17: 1 | I17: 7.737125246e+25 | J17: 2.68435456e-06 | K17: 2.076918743e+20 | L17: 2.596148429e+20 | N17: 5.543672981e+10 | O17: 0.04399586078 | P17: 2438986647 | Q17: 6097923934
C18: 85 | D18: 15 | F18: 1.998488158e-13 | G18: 1 | I18: 3.868562623e+25 | J18: 1.073741824e-06 | K18: 4.153837487e+19 | L18: 5.192296859e+19 | N18: 4.157858682e+10 | O18: 0.03519756854 | P18: 1463465159 | Q18: 3658937288
C19: 84 | D19: 16 | F19: 1.061696834e-12 | G19: 1 | I19: 1.934281311e+25 | J19: 4.294967296e-07 | K19: 8.307674974e+18 | L19: 1.038459372e+19 | N19: 3.118471973e+10 | O19: 0.02815875878 | P19: 878123000.7 | Q19: 2195472128
C20: 83 | D20: 17 | F20: 5.246031416e-12 | G20: 1 | I20: 9.671406557e+24 | J20: 1.717986918e-07 | K20: 1.661534995e+18 | L20: 2.076918743e+18 | N20: 2.338912453e+10 | O20: 0.0225275702 | P20: 526900144.8 | Q20: 1317349128
C21: 82 | D21: 18 | F21: 2.419003375e-11 | G21: 1 | I21: 4.835703278e+24 | J21: 6.871947674e-08 | K21: 3.323069989e+17 | L21: 4.153837487e+17 | N21: 1.754228195e+10 | O21: 0.01802250671 | P21: 316155894.3 | Q21: 790448983
C22: 81 | D22: 19 | F22: 1.04399093e-10 | G22: 0.9999999999 | I22: 2.417851639e+24 | J22: 2.748779069e-08 | K22: 6.646139979e+16 | L22: 8.307674974e+16 | N22: 1.315704039e+10 | O22: 0.01441836582 | P22: 189703021.5 | Q22: 474293088.7
C23: 80 | D23: 20 | F23: 4.228163268e-10 | G23: 0.9999999997 | I23: 1.20892582e+24 | J23: 1.099511628e-08 | K23: 1.329227996e+16 | L23: 1.661534995e+16 | N23: 9868026994 | O23: 0.01153498102 | P23: 113827504.1 | Q23: 284590067.3
C24: 79 | D24: 21 | F24: 1.610728864e-09 | G24: 0.9999999989 | I24: 6.044629098e+23 | J24: 4.398046511e-09 | K24: 2658455991569838 | L24: 3.323069989e+15 | N24: 7401205276 | O24: 0.009228215518 | P24: 68299917.38 | Q24: 170762563.2
C25: 78 | D25: 22 | F25: 5.78398092e-09 | G25: 0.9999999957 | I25: 3.022314549e+23 | J25: 1.759218604e-09 | K25: 5.316911983e+14 | L25: 6.646139979e+14 | N25: 5551042733 | O25: 0.007382756979 | P25: 40981999.48 | Q25: 102462645.8
C26: 77 | D26: 23 | F26: 1.961523964e-08 | G26: 0.9999999841 | I26: 1.511157275e+23 | J26: 7.036874418e-10 | K26: 1.063382397e+14 | L26: 1.329227996e+14 | N26: 4163386134 | O26: 0.005906353238 | P26: 24590429.18 | Q26: 61480646.3
C27: 76 | D27: 24 | F27: 6.293222719e-08 | G27: 0.9999999449 | I27: 7.555786373e+22 | J27: 2.814749767e-10 | K27: 2.126764793e+13 | L27: 2.658455992e+13 | N27: 3122617666 | O27: 0.004725200718 | P27: 14754995.24 | Q27: 36890217.12
C28: 75 | D28: 25 | F28: 1.913139706e-07 | G28: 0.999999819 | I28: 3.777893186e+22 | J28: 1.125899907e-10 | K28: 4.253529587e+12 | L28: 5.316911983e+12 | N28: 2342021800 | O28: 0.003780255078 | P28: 8853439.803 | Q28: 22135221.89
C29: 74 | D29: 26 | F29: 5.51867223e-07 | G29: 0.9999994364 | I29: 1.888946593e+22 | J29: 4.503599627e-11 | K29: 8.507059173e+11 | L29: 1.063382397e+12 | N29: 1756560264 | O29: 0.003024279668 | P29: 5312329.492 | Q29: 13281782.08
C30: 73 | D30: 27 | F30: 1.512524982e-06 | G30: 0.9999983326 | I30: 9.444732966e+21 | J30: 1.801439851e-11 | K30: 1.701411835e+11 | L30: 2.126764793e+11 | N30: 1317453134 | O30: 0.00241948422 | P30: 3187557.069 | Q30: 7969452.591
C31: 72 | D31: 28 | F31: 3.943368702e-06 | G31: 0.9999953076 | I31: 4.722366483e+21 | J31: 7.205759404e-12 | K31: 3.402823669e+10 | L31: 4.253529587e+10 | N31: 988114553.7 | O31: 0.001935635765 | P31: 1912629.87 | Q31: 4781895.522
C32: 71 | D32: 29 | F32: 9.790432639e-06 | G32: 0.9999874208 | I32: 2.361183241e+21 | J32: 2.882303762e-12 | K32: 6805647338 | L32: 8507059173 | N32: 741104442.9 | O32: 0.001548547325 | P32: 1147635.303 | Q32: 2869265.652
C33: 70 | D33: 30 | F33: 2.317069058e-05 | G33: 0.99996784 | I33: 1.180591621e+21 | J33: 1.152921505e-12 | K33: 1361129468 | L33: 1701411835 | N33: 555842228.2 | O33: 0.001238868831 | P33: 688615.6115 | Q33: 1721630.349
C34: 69 | D34: 31 | F34: 5.232091421e-05 | G34: 0.9999214986 | I34: 5.902958104e+20 | J34: 4.611686018e-13 | K34: 272225893.5 | L34: 340282366.9 | N34: 416892093.5 | O34: 0.0009911198421 | P34: 413190.0259 | Q34: 1033014.738
C35: 68 | D35: 32 | F35: 0.0001128169713 | G35: 0.9998168568 | I35: 2.951479052e+20 | J35: 1.844674407e-13 | K35: 54445178.71 | L35: 68056473.38 | N35: 312676887 | O35: 0.0007929156961 | P35: 247926.4115 | Q35: 619824.7119
C36: 67 | D36: 33 | F36: 0.0002324713347 | G36: 0.9995912228 | I36: 1.475739526e+20 | J36: 7.378697629e-14 | K36: 10889035.74 | L36: 13611294.68 | N36: 234513528.1 | O36: 0.0006343484152 | P36: 148763.2849 | Q36: 371898.3003
C37: 66 | D37: 34 | F37: 0.0004581052773 | G37: 0.9991262802 | I37: 7.378697629e+19 | J37: 2.951479052e-14 | K37: 2177807.148 | L37: 2722258.935 | N37: 175889543.3 | O37: 0.0005074914191 | P37: 89262.43395 | Q37: 223135.0154
C38: 65 | D38: 35 | F38: 0.0008638556657 | G38: 0.9982100696 | I38: 3.689348815e+19 | J38: 1.180591621e-14 | K38: 435561.4297 | L38: 544451.7871 | N38: 131920455.5 | O38: 0.0004060032851 | P38: 53560.13831 | Q38: 133872.5815
C39: 64 | D39: 36 | F39: 0.001559739396 | G39: 0.9964823583 | I39: 1.844674407e+19 | J39: 4.722366483e-15 | K39: 87112.28593 | L39: 108890.3574 | N39: 98942815.19 | O39: 0.0003248107482 | P39: 32137.68983 | Q39: 80312.44317
C40: 63 | D40: 37 | F40: 0.002697927605 | G40: 0.9933628795 | I40: 9.223372037e+18 | J40: 1.888946593e-15 | K40: 17422.45719 | L40: 21778.07148 | N40: 74208966.62 | O40: 0.0002598550948 | P40: 19283.57805 | Q40: 48174.75334
C41: 62 | D41: 38 | F41: 0.004472879976 | G41: 0.9879670243 | I41: 4.611686018e+18 | J41: 7.555786373e-16 | K41: 3484.491437 | L41: 4355.614293 | N41: 55658116.42 | O41: 0.0002078892729 | P41: 11570.72535 | Q41: 28891.17528
C42: 61 | D42: 39 | F42: 0.00711073227 | G42: 0.9790212643 | I42: 2.305843009e+18 | J42: 3.022314549e-16 | K42: 696.8982875 | L42: 871.1228557 | N42: 41744630.93 | O42: 0.0001663155761 | P42: 6942.782342 | Q42: 17320.44993
C43: 60 | D43: 40 | F43: 0.01084386671 | G43: 0.9647997998 | I43: 1.152921505e+18 | J43: 1.20892582e-16 | K43: 139.3796575 | L43: 174.2245683 | N43: 31309255.93 | O43: 0.0001330557872 | P43: 4165.877694 | Q43: 10377.66759
C44: 59 | D44: 41 | F44: 0.01586907324 | G44: 0.9431120664 | I44: 5.764607523e+17 | J44: 4.835703278e-17 | K44: 27.8759315 | L44: 34.8449108 | N44: 23482529.01 | O44: 0.0001064472909 | P44: 2499.651596 | Q44: 6211.789895
C45: 58 | D45: 42 | F45: 0.02229226955 | G45: 0.9113739199 | I45: 2.882303762e+17 | J45: 1.934281311e-17 | K45: 5.5751863 | L45: 6.968979306 | N45: 17612337.07 | O45: 8.515996165e-05 | P45: 1499.865949 | Q45: 3712.138299
C46: 57 | D46: 43 | F46: 0.03006864264 | G46: 0.8667893808 | I46: 1.441151881e+17 | J46: 7.737125246e-18 | K46: 1.11503726 | L46: 1.393793007 | N46: 13209583.04 | O46: 6.812967252e-05 | P46: 899.9645665 | Q46: 2212.27235
C47: 56 | D47: 44 | F47: 0.03895255979 | G47: 0.8066520955 | I47: 7.205759404e+16 | J47: 3.094850098e-18 | K47: 0.223007452 | L47: 0.2787557469 | N47: 9907434.965 | O47: 5.450510061e-05 | P47: 540.0057395 | Q47: 1312.307783
C48: 55 | D48: 45 | F48: 0.04847429663 | G48: 0.7287469759 | I48: 3.602879702e+16 | J48: 1.237940039e-18 | K48: 0.0446014904 | L48: 0.05574829488 | N48: 7430761.993 | O48: 4.360517059e-05 | P48: 324.0196443 | Q48: 772.3020437
C49: 54 | D49: 46 | F49: 0.05795839814 | G49: 0.6317983827 | I49: 1.801439851e+16 | J49: 4.951760157e-19 | K49: 0.008920298079 | L49: 0.01114680448 | N49: 5573210.825 | O49: 3.488500857e-05 | P49: 194.4215074 | Q49: 448.2823994
C50: 53 | D50: 47 | F50: 0.06659049999 | G50: 0.5158815864 | I50: 9007199254740992 | J50: 1.980704063e-19 | K50: 0.001784059616 | L50: 0.002226506401 | N50: 4180012.619 | O50: 2.790870456e-05 | P50: 116.6587372 | Q50: 253.860892
C51: 52 | D51: 48 | F51: 0.07352701041 | G51: =F51*2+G52 -> 0.3827005864 | I51: 4503599627370496 | J51: 7.922816251e-20 | K51: 0.0003568119232 | L51: 0.0004424467847 | N51: 3135087.841 | O51: 2.232752182e-05 | P51: 69.99874219 | Q51: 137.2021548
C52: 51 | D52: 49 | F52: =BINOMDIST(C52,100,0.5,FALSE) -> 0.07802866411 | G52: =F52*2+G53 -> 0.2356465656 | I52: 2251799813685248 | J52: 3.169126501e-20 | K52: 7.136238464e-05 | L52: =K52+L53 -> 8.563486156e-05 | N52: 2351374.665 | O52: 1.786246401e-05 | P52: 42.00134533 | Q52: 67.2034126
C53: 50 | D53: 50 | F53: =BINOMDIST(C53,100,0.5,FALSE) -> 0.07958923739 | G53: =F53 -> 0.07958923739 | I53: 1125899906842624 | J53: 1.2676506e-20 | K53: 1.427247693e-05 | L53: =K53 -> 1.427247693e-05 | N53: 1763575.088 | O53: 1.429032845e-05 | P53: 25.20206727 | Q53: =P53 -> 25.20206727
C54: 49 | D54: 51 | F54: =BINOMDIST(C54,100,0.5,FALSE) -> 0.07802866411 | I54: 562949953421312 | J54: 5.070602401e-21 | K54: 2.854495385e-06 | N54: =POWER($N$2,C54) -> 1322714.384 | O54: =POWER($O$2,D54) -> 1.143254857e-05 | P54: =N54*O54 -> 15.12199644
C55: 48 | D55: 52 | F55: =BINOMDIST(C55,100,0.5,FALSE) -> 0.07352701041 | I55: 281474976710656 | J55: 2.02824096e-21 | K55: 5.708990771e-07 | N55: 992060.5897 | O55: 9.146267507e-06 | P55: 9.073651537
C56: 47 | D56: 53 | F56: 0.06659049999 | I56: 140737488355328 | J56: 8.112963841e-22 | K56: 1.141798154e-07 | N56: 744064.0438 | O56: 7.317196931e-06 | P56: 5.444463138
C57: 46 | D57: 54 | F57: 0.05795839814 | I57: 70368744177664 | J57: 3.245185537e-22 | K57: 2.283596308e-08 | N57: 558061.9844 | O57: 5.853903889e-06 | P57: 3.266841221
C58: 45 | D58: 55 | F58: 0.04847429663 | I58: 35184372088832 | J58: 1.298074215e-22 | K58: 4.567192617e-09 | N58: 418556.9522 | O58: 4.683240189e-06 | P58: 1.96020274
C59: 44 | D59: 56 | F59: 0.03895255979 | I59: 17592186044416 | J59: 5.192296859e-23 | K59: 9.134385233e-10 | N59: 313925.5623 | O59: 3.746685816e-06 | P59: 1.176180452
C60: 43 | D60: 57 | F60: 0.03006864264 | I60: 8796093022208 | J60: 2.076918743e-23 | K60: 1.826877047e-10 | N60: 235450.058 | O60: 2.997423587e-06 | P60: 0.7057435573
C61: 42 | D61: 58 | F61: 0.02229226955 | I61: 4398046511104 | J61: 8.307674974e-24 | K61: 3.653754093e-11 | N61: 176591.9583 | O61: 2.397998818e-06 | P61: 0.4234673072
C62: 41 | D62: 59 | F62: 0.01586907324 | I62: 2199023255552 | J62: 3.323069989e-24 | K62: 7.307508187e-12 | N62: 132447.2799 | O62: 1.918447014e-06 | P62: 0.2540930887
C63: 40 | D63: 60 | F63: 0.01084386671 | I63: 1099511627776 | J63: 1.329227996e-24 | K63: 1.461501637e-12 | N63: 99337.94338 | O63: 1.53479598e-06 | P63: 0.1524634762
C64: 39 | D64: 61 | F64: 0.00711073227 | I64: 549755813888 | J64: 5.316911983e-25 | K64: 2.923003275e-13 | N64: 74505.32017 | O64: 1.22786748e-06 | P64: 0.09148265973
C65: 38 | D65: 62 | F65: 0.004472879976 | I65: 274877906944 | J65: 2.126764793e-25 | K65: 5.846006549e-14 | N65: 55880.38713 | O65: 9.823185415e-07 | P65: 0.05489234039
C66: 37 | D66: 63 | F66: 0.002697927605 | I66: 137438953472 | J66: 8.507059173e-26 | K66: 1.16920131e-14 | N66: 41911.33813 | O66: 7.858744796e-07 | P66: 0.03293705104
C67: 36 | D67: 64 | F67: 0.001559739396 | I67: 68719476736 | J67: 3.402823669e-26 | K67: 2.33840262e-15 | N67: 31434.28946 | O67: 6.287153011e-07 | P67: 0.01976321876
C68: 35 | D68: =100-C68 -> 65 | F68: 0.0008638556657 | I68: =POWER($I$2,C68) -> 34359738368 | J68: =POWER($J$2,D68) -> 1.361129468e-26 | K68: =I68*J68 -> 4.676805239e-16 | N68: 23576.3065 | O68: 5.029848152e-07 | P68: 0.01185852417
C69: 34 | D69: 66 | F69: 0.0004581052773 | I69: 17179869184 | J69: 5.444517871e-27 | K69: 9.353610479e-17 | N69: 17682.67194 | O69: 4.023979119e-07 | P69: 0.007115470266
C70: 33 | D70: 67 | F70: 0.0002324713347 | I70: 8589934592 | J70: 2.177807148e-27 | K70: 1.870722096e-17 | N70: 13262.33552 | O70: 3.219263775e-07 | P70: 0.004269495629
C71: 32 | D71: 68 | F71: 0.0001128169713 | I71: 4294967296 | J71: 8.711228593e-28 | K71: 3.741444192e-18 | N71: 9947.000311 | O71: 2.575475405e-07 | P71: 0.002561825465
C72: 31 | D72: 69 | F72: 5.232091421e-05 | I72: 2147483648 | J72: 3.484491437e-28 | K72: 7.482888383e-19 | N72: 7460.436744 | O72: 2.060431833e-07 | P72: 0.001537172136
C73: 30 | D73: 70 | F73: 2.317069058e-05 | I73: 1073741824 | J73: 1.393796575e-28 | K73: 1.496577677e-19 | N73: 5595.467445 | O73: 1.648386675e-07 | P73: 0.0009223493979
C74: 29 | D74: 71 | F74: 9.790432639e-06 | I74: 536870912 | J74: 5.5751863e-29 | K74: 2.993155353e-20 | N74: 4196.705501 | O74: 1.318742308e-07 | P74: 0.0005534373099
C75: 28 | D75: 72 | F75: 3.943368702e-06 | I75: 268435456 | J75: 2.23007452e-29 | K75: 5.986310707e-21 | N75: 3147.607816 | O75: 1.055020221e-07 | P75: 0.0003320789895
C76: 27 | D76: 73 | F76: 1.512524982e-06 | I76: 134217728 | J76: 8.920298079e-30 | K76: 1.197262141e-21 | N76: 2360.764881 | O76: 8.440372774e-08 | P76: 0.0001992573563
C77: 26 | D77: 74 | F77: 5.51867223e-07 | I77: 67108864 | J77: 3.568119232e-30 | K77: 2.394524283e-22 | N77: 1770.617926 | O77: 6.752467027e-08 | P77: 0.0001195603917
C78: 25 | D78: 75 | F78: 1.913139706e-07 | I78: 33554432 | J78: 1.427247693e-30 | K78: 4.789048565e-23 | N78: 1327.996645 | O78: 5.402108671e-08 | P78: 7.173982189e-05
C79: 24 | D79: 76 | F79: 6.293222719e-08 | I79: 16777216 | J79: 5.708990771e-31 | K79: 9.57809713e-24 | N79: 996.0223841 | O79: 4.321794979e-08 | P79: 4.304604538e-05
C80: 23 | D80: 77 | F80: 1.961523964e-08 | I80: 8388608 | J80: 2.283596308e-31 | K80: 1.915619426e-24 | N80: 747.035464 | O80: 3.457522419e-08 | P80: 2.582891864e-05
C81: 22 | D81: 78 | F81: 5.78398092e-09 | I81: 4194304 | J81: 9.134385233e-32 | K81: 3.831238852e-25 | N81: 560.2906052 | O81: 2.766087086e-08 | P81: 1.549812607e-05
C82: 21 | D82: 79 | F82: 1.610728864e-09 | I82: 2097152 | J82: 3.653754093e-32 | K82: 7.662477704e-26 | N82: 420.2284596 | O82: 2.21292499e-08 | P82: 9.2993406e-06
C83: 20 | D83: 80 | F83: 4.228163268e-10 | I83: 1048576 | J83: 1.461501637e-32 | K83: 1.532495541e-26 | N83: 315.1792242 | O83: 1.770384251e-08 | P83: 5.579883347e-06
C84: 19 | D84: 81 | F84: 1.04399093e-10 | I84: 524288 | J84: 5.846006549e-33 | K84: 3.064991082e-27 | N84: 236.3903279 | O84: 1.416342808e-08 | P84: 3.348097409e-06
C85: 18 | D85: 82 | F85: 2.419003375e-11 | I85: 262144 | J85: 2.33840262e-33 | K85: 6.129982163e-28 | N85: 177.2971784 | O85: 1.133102573e-08 | P85: 2.008958891e-06
C86: 17 | D86: 83 | F86: 5.246031416e-12 | I86: 131072 | J86: 9.353610479e-34 | K86: 1.225996433e-28 | N86: 132.9762082 | O86: 9.065047208e-09 | P86: 1.205435605e-06
C87: 16 | D87: 84 | F87: 1.061696834e-12 | I87: 65536 | J87: 3.741444192e-34 | K87: 2.451992865e-29 | N87: 99.7346495 | O87: 7.252219067e-09 | P87: 7.232975268e-07
C88: 15 | D88: 85 | F88: 1.998488158e-13 | I88: 32768 | J88: 1.496577677e-34 | K88: 4.903985731e-30 | N88: 74.8028572 | O88: 5.801920298e-09 | P88: 4.340002156e-07
C89: 14 | D89: 86 | F89: 3.48573516e-14 | I89: 16384 | J89: 5.986310707e-35 | K89: 9.807971462e-31 | N89: 56.10354549 | O89: 4.641652277e-09 | P89: 2.604131497e-07
C90: 13 | D90: 87 | F90: 5.609228993e-15 | I90: 8192 | J90: 2.394524283e-35 | K90: 1.961594292e-31 | N90: 42.07871108 | O90: 3.713414655e-09 | P90: 1.562557024e-07
C91: 12 | D91: 88 | F91: 8.286361012e-16 | I91: 4096 | J91: 9.57809713e-36 | K91: 3.923188585e-32 | N91: 31.55982231 | O91: 2.970805992e-09 | P91: 9.375810922e-08
C92: 11 | D92: 89 | F92: 1.117262159e-16 | I92: 2048 | J92: 3.831238852e-36 | K92: 7.846377169e-33 | N92: 23.67045849 | O92: 2.37670421e-09 | P92: 5.625767835e-08
C93: 10 | D93: 90 | F93: 1.365542639e-17 | I93: 1024 | J93: 1.532495541e-36 | K93: 1.569275434e-33 | N93: 17.7532877 | O93: 1.901410902e-09 | P93: 3.375629478e-08
C94: 9 | D94: 91 | F94: 1.500596306e-18 | I94: 512 | J94: 6.129982163e-37 | K94: 3.138550868e-34 | N94: 13.31529866 | O94: 1.52116675e-09 | P94: 2.025478958e-08
C95: 8 | D95: 92 | F95: 1.467974647e-19 | I95: 256 | J95: 2.451992865e-37 | K95: 6.277101735e-35 | N95: 9.986723662 | O95: 1.216963823e-09 | P95: 1.215348141e-08
C96: 7 | D96: 93 | F96: 1.26277389e-20 | I96: 128 | J96: 9.807971462e-38 | K96: 1.255420347e-35 | N96: 7.490230002 | O96: 9.735953978e-10 | P96: 7.292453459e-09
C97: 6 | D97: 94 | F97: 9.403635353e-22 | I97: 64 | J97: 3.923188585e-38 | K97: 2.510840694e-36 | N97: 5.617812947 | O97: 7.788957901e-10 | P97: 4.375690854e-09
C98: 5 | D98: 95 | F98: 5.939138118e-23 | I98: 32 | J98: 1.569275434e-38 | K98: 5.021681388e-37 | N98: 4.213465047 | O98: 6.2313221e-10 | P98: 2.625545787e-09
C99: 4 | D99: 96 | F99: 3.093301103e-24 | I99: 16 | J99: 6.277101735e-39 | K99: 1.004336278e-37 | N99: 3.16017779 | O99: 4.985182307e-10 | P99: 1.57540624e-09
C100: 3 | D100: 97 | F100: 1.275588084e-25 | I100: 8 | J100: 2.510840694e-39 | K100: 2.008672555e-38 | N100: 2.370192597 | O100: 3.988245549e-10 | P100: 9.452910075e-10
C101: 2 | D101: 98 | F101: 3.904861481e-27 | I101: 4 | J101: 1.004336278e-39 | K101: 4.017345111e-39 | N101: 1.77768889 | O101: 3.190676204e-10 | P101: 5.67202964e-10
C102: 1 | D102: 99 | F102: 7.888609052e-29 | I102: 2 | J102: 4.017345111e-40 | K102: 8.034690221e-40 | N102: 1.3333 | O102: 2.552604777e-10 | P102: 3.403387949e-10
C103: 0 | D103: 100 | F103: 7.888609052e-31 | I103: 1 | J103: 1.606938044e-40 | K103: 1.606938044e-40 | N103: 1 | O103: 2.042134874e-10 | P103: 2.042134874e-10
F104: =SUM(F3:F103) -> 1

Sheet Лист2

Sheet Лист3
